lending/lending_fUSD_20251111
["ID","MTS","AMOUNT","RATE_DAILY","PERIOD"]
[393583730,1762822232517,-500.0,0.00017375,2]
[393583731,1762822232527,-431.51814582,0.00017375,2]
[393583732,1762822232537,-430.93611064,0.00017375,2]
[393583733,1762822232547,-27369.19827575,0.00017376,2]
[393583734,1762822232559,-327.7799999,0.00017376,2]
[393583735,1762822232571,-434.57723662,0.00017376,2]
[393583736,1762822232581,-863.39514513,0.00017376,2]
[393583737,1762822232592,-357.30360357,0.00017376,2]
[393583738,1762822232610,-1085.12755497,0.00017376,2]
[393583739,1762822232621,-450.0,0.00017376,2]
[393583740,1762822232641,-436.60011272,0.00017376,2]
[393583741,1762822232652,-339.66691684,0.00017376,2]
[393583742,1762822232663,-5082.0,0.00017376,2]
[393583743,1762822232675,-1028.89339192,0.00017376,2]
[393583754,1762822237939,-1016.028,0.00017376,2]
[393583755,1762822237951,-4877.6542088,0.00017376,2]
[393583756,1762822237962,-8426.28311524,0.00017376,2]
[393583757,1762822237994,-761.36053784,0.00017376,2]
[393583758,1762822238005,-1713.70692965,0.00017376,2]
[393583759,1762822238016,-636.88586202,0.00017376,2]
[393583760,1762822238048,-2150.1145965,0.00017376,2]
[393583761,1762822238104,-505.96095637,0.00017376,2]
[393583771,1762822239887,-528.85,0.00017376,2]
[393583778,1762822245675,-8554.71110303,0.00017376,2]
[393583779,1762822245753,-5459.6905757,0.00017376,2]
[393583780,1762822245785,-28656.20139365,0.00017376,2]
[393583781,1762822245799,-13152.93889355,0.00017376,2]
[393583782,1762822246307,-3550.96346825,0.00017376,2]
[393583783,1762822246319,-11754.35073626,0.00017376,2]
[393583786,1762822246330,-260.0465452,0.00017376,2]
[393583805,1762822335833,-1750.7,0.00016438,2]
[393583806,1762822335857,-2000.0,0.00017,2]
[393583807,1762822335884,-533.75957122,0.00017362,2]
[393583808,1762822335906,-300.0,0.00017375,2]
[393583809,1762822335930,-415.54042878,0.00017376,2]
[393583810,1762822821779,248.2,0.00030137,120]
[393583811,1762822948212,807.34,0.00013699,2]
[393583821,1762823431843,-166.66,0.00015617,2]
[393583822,1762823431853,-195.0,0.00015782,2]
[393583823,1762823431863,-166.66,0.00015946,2]
[393583824,1762823431874,-195.0,0.00016127,2]
[393583825,1762823431883,-166.66,0.00016275,2]
[393583826,1762823431893,-1188.62,0.00016359,2]
[393583827,1762823431904,-1000.0,0.00016437,2]
[393583828,1762823431914,-195.0,0.00016455,2]
[393583829,1762823431923,-999.0,0.00016473,3]
[393583830,1762823431932,-166.66,0.00016604,2]
[393583831,1762823431941,-166.66,0.00016933,2]
[393583832,1762823431953,-6167.15527154,0.0001695,2]
[393583833,1762823431963,-160.0,0.00017125,2]
[393583834,1762823431972,-10624.39363604,0.00017176,2]
[393583835,1762823431981,-366.21614692,0.00017176,2]
[393583836,1762823431991,-5392.53627558,0.00017176,2]
[393583837,1762823432000,-560.91909383,0.00017179,2]
[393583838,1762823432010,-250.0,0.00017179,2]
[393583839,1762823432019,-195.0,0.00017179,2]
[393583840,1762823432029,-300.0,0.00017179,2]
[393583841,1762823432038,-300.0,0.00017179,2]
[393583842,1762823432047,-300.0,0.00017179,2]
[393583843,1762823432060,-225.94938483,0.00017179,2]
[393583844,1762823432069,-246.2,0.00017184,2]
[393583845,1762823432078,-206.35471176,0.00017194,2]
[393583846,1762823432088,-166.66,0.00017261,2]
[393583847,1762823432097,-550.0,0.00017264,2]
[393583848,1762823432107,-500.0,0.00017265,2]
[393583849,1762823432116,-608.24661069,0.00017265,2]
[393583850,1762823432125,-500.0,0.00017265,2]
[393583851,1762823432134,-500.0,0.00017265,2]
[393583852,1762823432143,-422.14507491,0.00017265,2]
[393583853,1762823432153,-500.0,0.00017265,2]
[393583854,1762823432162,-500.0,0.00017265,2]
[393583855,1762823432172,-500.0,0.00017265,2]
[393583856,1762823432181,-500.0,0.00017265,2]
[393583857,1762823432191,-500.0,0.00017265,2]
[393583858,1762823432200,-222.89657761,0.00017265,2]
[393583859,1762823432209,-500.0,0.00017265,2]
[393583860,1762823432219,-500.0,0.00017265,2]
[393583861,1762823432228,-500.0,0.00017265,2]
[393583862,1762823432238,-500.0,0.00017265,2]
[393583863,1762823432246,-500.0,0.00017265,2]
[393583864,1762823432256,-500.0,0.00017265,2]
[393583865,1762823432265,-500.0,0.00017265,2]
[393583866,1762823432275,-500.0,0.00017265,2]
[393583867,1762823432284,-500.0,0.00017265,2]
[393583868,1762823432294,-500.0,0.00017265,2]
[393583869,1762823432303,-500.0,0.00017265,2]
[393583870,1762823432312,-500.0,0.00017265,2]
[393583871,1762823432322,-500.0,0.00017265,2]
[393583872,1762823432332,-500.0,0.00017265,2]
[393583874,1762823432341,-665.17,0.00017265,2]
[393583876,1762823432351,-151.0,0.00017266,2]
[393583878,1762823432360,-151.0,0.00017266,2]
[393583879,1762823432369,-151.0,0.00017266,2]
[393583880,1762823432379,-151.0,0.00017266,2]
[393583881,1762823432388,-151.0,0.00017266,2]
[393583882,1762823432398,-151.0,0.00017266,2]
[393583883,1762823432407,-151.0,0.00017266,2]
[393583884,1762823432417,-151.0,0.00017266,2]
[393583885,1762823432426,-151.0,0.00017266,2]
[393583886,1762823432435,-151.0,0.00017266,2]
[393583887,1762823432445,-151.0,0.00017266,2]
[393583888,1762823432454,-151.0,0.00017266,2]
[393583889,1762823432464,-151.0,0.00017266,2]
[393583890,1762823432474,-151.0,0.00017266,2]
[393583891,1762823432484,-151.0,0.00017266,2]
[393583892,1762823432494,-151.0,0.00017266,2]
[393583893,1762823432503,-151.0,0.00017266,2]
[393583894,1762823432512,-151.0,0.00017266,2]
[393583895,1762823432661,-151.0,0.00017266,2]
[393583896,1762823432670,-151.0,0.00017266,2]
[393583897,1762823432680,-151.0,0.00017266,2]
[393583898,1762823432689,-151.0,0.00017266,2]
[393583899,1762823432699,-151.0,0.00017266,2]
[393583900,1762823432708,-151.0,0.00017266,2]
[393583901,1762823432717,-151.0,0.00017266,2]
[393583902,1762823432726,-151.0,0.00017266,2]
[393583903,1762823432735,-151.0,0.00017266,2]
[393583904,1762823432745,-151.0,0.00017266,2]
[393583905,1762823432753,-151.0,0.00017266,2]
[393583906,1762823432763,-151.0,0.00017266,2]
[393583907,1762823432772,-151.0,0.00017266,2]
[393583908,1762823432781,-151.0,0.00017266,2]
[393583909,1762823432791,-151.0,0.00017266,2]
[393583910,1762823432800,-151.0,0.00017266,2]
[393583911,1762823432810,-151.0,0.00017266,2]
[393583912,1762823432819,-151.0,0.00017266,2]
[393583913,1762823432830,-200.0,0.00017266,2]
[393583914,1762823432843,-474.45,0.00017266,2]
[393583915,1762823432852,-474.45,0.00017266,2]
[393583916,1762823432861,-474.45,0.00017266,2]
[393583917,1762823432871,-500.0,0.00017273,2]
[393583918,1762823432881,-500.0,0.00017273,2]
[393583919,1762823432890,-500.0,0.00017273,2]
[393583920,1762823432899,-625.66484085,0.00017273,2]
[393583921,1762823432909,-501.57242685,0.00017273,2]
[393583922,1762823432918,-500.0,0.00017273,2]
[393583923,1762823432928,-297.06390658,0.00017273,2]
[393583924,1762823432937,-151.0,0.00017273,2]
[393583925,1762823432946,-217.27116402,0.00017275,2]
[393583926,1762823432955,-500.0,0.00017275,2]
[393583927,1762823432964,-302.06270207,0.00017275,2]
[393583928,1762823432973,-558.0955428,0.00017275,2]
[393583929,1762823432984,-500.0,0.00017275,2]
[393583930,1762823432993,-29824.20212888,0.00017276,2]
[393583931,1762823433356,-254.0,0.00017276,2]
[393583932,1762823433371,-30736.23634496,0.00017276,2]
[393583933,1762823433383,-25326.54883522,0.00017276,2]
[393583934,1762823433394,-719.19571675,0.00017276,2]
[393583935,1762823433405,-25578.41624523,0.00017276,2]
[393583936,1762823433416,-748.69638418,0.00017276,2]
[393583937,1762823433427,-2711.41326067,0.00017276,2]
[393583938,1762823433438,-9539.93800583,0.00017276,2]
[393583940,1762823437749,-1199.44426882,0.00017276,2]
[393583941,1762823437915,-12113.27560949,0.00017276,2]
[393583984,1762823439878,-241.37827676,0.00017176,2]
[393583985,1762823439887,-92906.02352057,0.00017276,2]
[393583986,1762823439937,-538.33809985,0.00017276,2]
[393583987,1762823439948,-3314.26333353,0.00017276,2]
[393583988,1762823439959,-489.590581,0.00017276,2]
[393583989,1762823439970,-11856.91255006,0.00017276,2]
[393584024,1762823443010,-352.45922165,0.00017276,2]
[393584025,1762823443022,-8038.82145275,0.00017276,2]
[393584026,1762823443080,-163752.22444056,0.00017276,2]
[393584027,1762823443091,-753.8191,0.00017276,2]
[393584028,1762823443100,-153.85,0.00017311,2]
[393584029,1762823443109,-474.45,0.00017349,2]
[393584030,1762823443118,-217.9324508,0.00017359,2]
[393584031,1762823443127,-108453.4916298,0.00017359,2]
[393584032,1762823443136,-3270.5589981,0.00017359,2]
[393584033,1762823443146,-499.34352506,0.00017373,2]
[393584034,1762823443155,-500.0,0.00017373,2]
[393584035,1762823443164,-500.0,0.00017373,2]
[393584036,1762823443173,-500.0,0.00017373,2]
[393584037,1762823443182,-559.92231787,0.00017373,2]
[393584038,1762823443192,-500.0,0.00017373,2]
[393584039,1762823443201,-500.0,0.00017373,2]
[393584047,1762823443346,-500.0,0.00017373,2]
[393584049,1762823443356,-500.0,0.00017373,2]
[393584051,1762823443365,-500.0,0.00017373,2]
[393584053,1762823443375,-500.0,0.00017373,2]
[393584055,1762823443384,-200.0,0.00017376,2]
[393584057,1762823443393,-200.0,0.00017376,2]
[393584059,1762823443403,-2306.07626,0.00017376,2]
[393584061,1762823443411,-474.45,0.00017483,2]
[393584063,1762823443421,-836.0,0.00017493,2]
[393584065,1762823443430,-665.17,0.00017539,2]
[393584067,1762823443440,-836.0,0.00017573,2]
[393584069,1762823443449,-500.0,0.00017575,2]
[393584071,1762823443458,-400.0,0.000176,6]
[393584073,1762823443467,-836.0,0.00017616,2]
[393584075,1762823443477,-900.0,0.000177,6]
[393584077,1762823443486,-836.0,0.0001772,2]
[393584078,1762823443495,-1300.0,0.000178,6]
[393584079,1762823443504,-665.17,0.00017813,2]
[393584081,1762823443513,-834.97782505,0.00017821,2]
[393584082,1762823443522,-259.58284128,0.00017821,2]
[393584083,1762823443532,-1000.0,0.00017821,2]
[393584084,1762823443541,-1800.0,0.000179,6]
[393584085,1762823443551,-6662.0,0.00017919,2]
[393584086,1762823443560,-2142.0,0.00017919,2]
[393584087,1762823443570,-6479.0,0.00017919,2]
[393584088,1762823443579,-836.0,0.0001792,2]
[393584089,1762823443589,-189.48,0.00017938,2]
[393584090,1762823443598,-836.0,0.00017946,2]
[393584091,1762823443608,-28179.99793282,0.00017962,2]
[393584092,1762823443618,-167.94249467,0.00017962,2]
[393584093,1762823443627,-648.50122572,0.00017962,2]
[393584094,1762823443636,-203.28723306,0.00017962,2]
[393584095,1762823443645,-836.0,0.00017968,2]
[393584096,1762823443654,-500.0,0.00017989,2]
[393584097,1762823443664,-53712.57504803,0.0001799,2]
[393584098,1762823443673,-211.8829893,0.0001799,2]
[393584099,1762823443684,-500.0,0.00017999,2]
[393584100,1762823443693,-500.0,0.00017999,2]
[393584101,1762823443703,-500.0,0.00017999,2]
[393584102,1762823443713,-500.0,0.00017999,2]
[393584103,1762823443722,-500.0,0.00017999,2]
[393584104,1762823443731,-500.0,0.00017999,2]
[393584105,1762823443740,-500.0,0.00017999,2]
[393584106,1762823443750,-500.0,0.00017999,2]
[393584107,1762823443759,-500.0,0.00017999,2]
[393584108,1762823443768,-500.0,0.00017999,2]
[393584109,1762823443778,-1701.0,0.00018,2]
[393584110,1762823443787,-143952.6655742,0.00018,2]
[393584114,1762823446104,-1189.0,0.00017919,2]
[393584115,1762823446114,-435.44353945,0.00018,2]
[393584116,1762823446440,-4531.12255015,0.00018,2]
[393584117,1762823446451,-303.03182902,0.00018,2]
[393584119,1762823460027,697.69,9.619e-05,2]
[393584120,1762823460226,697.69,0.00010106,2]
[393584121,1762823460644,697.69,0.00010592,2]
[393584122,1762823460882,697.69,0.00011078,2]
[393584123,1762823461088,697.69,0.00011565,2]
[393584124,1762823461295,697.69,0.00012051,2]
[393584125,1762823461570,697.69,0.00012538,2]
[393584126,1762823461773,697.69,0.00013024,2]
[393584127,1762823462048,697.69,0.0001351,2]
[393584128,1762823462337,697.69,0.00013997,2]
[393584129,1762823462560,697.69,0.00014483,2]
[393584130,1762823462821,697.69,0.0001497,2]
[393584140,1762823971615,194.32,0.00013109,2]
[393584147,1762824272377,-697.69,0.00015456,2]
[393584148,1762824272402,-697.69,0.00015943,2]
[393584149,1762824272429,-150.0,0.00016214,2]
[393584150,1762824272471,-550.0,0.00016384,2]
[393584151,1762824272495,-300.0,0.00016384,2]
[393584152,1762824272521,-1200.0,0.00016385,2]
[393584153,1762824272545,-300.0,0.00016385,2]
[393584154,1762824272567,-437.0,0.00016385,2]
[393584155,1762824272595,-500.0,0.00016385,2]
[393584156,1762824272622,-500.0,0.00016385,2]
[393584157,1762824272647,-500.0,0.00016385,2]
[393584158,1762824272673,-500.0,0.00016385,2]
[393584159,1762824272699,-500.0,0.00016385,2]
[393584160,1762824272725,-500.0,0.00016385,2]
[393584161,1762824272752,-500.0,0.00016385,2]
[393584162,1762824272777,-298.52727384,0.00016385,2]
[393584163,1762824272802,-500.0,0.00016385,2]
[393584164,1762824272828,-500.0,0.00016385,2]
[393584165,1762824272855,-500.0,0.00016385,2]
[393584166,1762824272877,-47159.54,0.00016386,2]
[393584167,1762824272901,-697.69,0.00016429,2]
[393584168,1762824272925,-500.0,0.00016438,2]
[393584169,1762824272949,-500.0,0.00016438,2]
[393584170,1762824272974,-191.43295307,0.00016438,2]
[393584171,1762824272997,-2751.0,0.00016731,2]
[393584172,1762824273021,-697.69,0.00016915,2]
[393584173,1762824273045,-500.0,0.00016932,2]
[393584174,1762824273068,-250.0,0.00017,2]
[393584175,1762824273093,-195.0,0.00017002,2]
[393584176,1762824273119,-300.0,0.00017002,2]
[393584177,1762824273141,-300.0,0.00017002,2]
[393584178,1762824273165,-234.48550667,0.00017073,2]
[393584179,1762824273192,-320.43912852,0.00017073,2]
[393584180,1762824273216,-12547.40039118,0.00017076,2]
[393584181,1762824273239,-12484.43156399,0.00017076,2]
[393584182,1762824273261,-151.0,0.00017152,2]
[393584183,1762824273284,-592.3,0.00017155,2]
[393584184,1762824273307,-151.0,0.00017155,2]
[393584185,1762824273330,-151.0,0.00017155,2]
[393584186,1762824273352,-151.0,0.00017155,2]
[393584187,1762824273379,-151.0,0.00017155,2]
[393584188,1762824273402,-151.0,0.00017155,2]
[393584189,1762824273425,-151.0,0.00017155,2]
[393584190,1762824273449,-151.0,0.00017155,2]
[393584191,1762824273473,-151.0,0.00017155,2]
[393584192,1762824273498,-151.0,0.00017155,2]
[393584193,1762824273524,-151.0,0.00017155,2]
[393584194,1762824273657,-151.0,0.00017155,2]
[393584195,1762824273691,-297.65800971,0.00017155,2]
[393584196,1762824273714,-151.0,0.00017155,2]
[393584197,1762824273741,-151.0,0.00017155,2]
[393584198,1762824273765,-151.0,0.00017155,2]
[393584199,1762824273787,-151.0,0.00017155,2]
[393584200,1762824273808,-151.0,0.00017155,2]
[393584201,1762824273830,-151.0,0.00017155,2]
[393584202,1762824273852,-151.0,0.00017155,2]
[393584203,1762824273875,-151.0,0.00017155,2]
[393584204,1762824273897,-151.0,0.00017155,2]
[393584205,1762824273922,-151.0,0.00017155,2]
[393584206,1762824273946,-151.0,0.00017155,2]
[393584207,1762824273969,-173.18881178,0.00017155,2]
[393584208,1762824273992,-217.18453201,0.00017164,2]
[393584209,1762824274016,-240.66687996,0.00017164,2]
[393584210,1762824274039,-211.44389145,0.00017164,2]
[393584211,1762824274061,-500.0,0.00017164,2]
[393584212,1762824274083,-500.0,0.00017165,2]
[393584213,1762824274107,-500.0,0.00017165,2]
[393584214,1762824274128,-500.0,0.00017165,2]
[393584215,1762824274152,-500.0,0.00017165,2]
[393584216,1762824274174,-500.0,0.00017165,2]
[393584217,1762824274197,-500.0,0.00017165,2]
[393584218,1762824274218,-500.0,0.00017165,2]
[393584219,1762824274239,-500.0,0.00017165,2]
[393584220,1762824274261,-500.0,0.00017165,2]
[393584221,1762824274283,-500.0,0.00017165,2]
[393584222,1762824274307,-420000.0,0.00017165,2]
[393584223,1762824274328,-500.0,0.00017173,2]
[393584224,1762824274351,-500.0,0.00017173,2]
[393584225,1762824274373,-1000.0,0.00017176,2]
[393584226,1762824274397,-200.0,0.00017239,2]
[393584227,1762824274423,-540.84,0.00017275,2]
[393584228,1762824274450,-516.69,0.00017275,2]
[393584229,1762824274477,-2000.0,0.000173,2]
[393584230,1762824274501,-697.69,0.00017402,2]
[393584231,1762824274533,-174.0,0.00017411,2]
[393584232,1762824274557,-592.3,0.00017429,2]
[393584233,1762824274582,-174.0,0.00017474,2]
[393584234,1762824274606,-635.0,0.00017499,2]
[393584235,1762824274628,-500.0,0.00017589,2]
[393584236,1762824274653,-174.0,0.00017634,2]
[393584237,1762824274676,-174.0,0.00017671,2]
[393584238,1762824274699,-206.35471176,0.000177,2]
[393584239,1762824274721,-592.3,0.00017703,2]
[393584240,1762824274745,-174.0,0.00017714,2]
[393584241,1762824274769,-277.35679052,0.00017733,2]
[393584242,1762824274791,-322.6107,0.00017733,2]
[393584243,1762824274816,-174.0,0.00017755,2]
[393584244,1762824274839,-174.0,0.00017815,2]
[393584245,1762824274862,-1921.73021,0.0001782,2]
[393584246,1762824274887,-316.47033406,0.0001783,2]
[393584247,1762824274911,-174.0,0.0001787,2]
[393584248,1762824274932,-150.0,0.0001787,2]
[393584249,1762824274955,-500.0,0.0001787,2]
[393584250,1762824274979,-150.0,0.0001787,2]
[393584251,1762824275006,-500.0,0.0001787,2]
[393584252,1762824275035,-174.0,0.00017876,2]
[393584253,1762824275060,-174.0,0.00017882,2]
[393584254,1762824275090,-697.69,0.00017888,2]
[393584255,1762824275122,-150.0,0.00017895,2]
[393584256,1762824275145,-297.77697458,0.00017895,2]
[393584257,1762824275168,-150.0,0.00017895,2]
[393584258,1762824275191,-500.0,0.00017895,2]
[393584259,1762824275213,-150.0,0.00017895,2]
[393584260,1762824275240,-766.0,0.00017895,2]
[393584261,1762824275264,-194.84176652,0.000179,2]
[393584262,1762824275285,-163.99716146,0.000179,2]
[393584263,1762824275308,-420.0,0.00017907,2]
[393584264,1762824275331,-420.0,0.00017908,2]
[393584265,1762824275357,-174.0,0.00017923,2]
[393584266,1762824275384,-174.0,0.00017957,2]
[393584267,1762824275522,-500.0,0.00017966,2]
[393584268,1762824275545,-500.0,0.00017966,2]
[393584269,1762824275568,-500.0,0.00017966,2]
[393584270,1762824275591,-500.0,0.00017966,2]
[393584271,1762824275613,-273429.6580501,0.00017967,2]
[393584272,1762824275644,-4434.4790013,0.00017967,2]
[393584273,1762824275672,-592.3,0.00017977,2]
[393584274,1762824275696,-211.8829893,0.0001799,2]
[393584275,1762824275720,-1680.0,0.00017997,2]
[393584276,1762824275744,-500.0,0.00017998,2]
[393584277,1762824275770,-500.0,0.00017998,2]
[393584278,1762824275794,-607.03225849,0.00017998,2]
[393584279,1762824275817,-500.0,0.00017999,2]
[393584280,1762824275840,-500.0,0.00017999,2]
[393584281,1762824275864,-500.0,0.00017999,2]
[393584282,1762824275887,-605.70425089,0.00017999,2]
[393584283,1762824275912,-175355.83585884,0.00018,2]
[393584284,1762824284208,-5000.0,0.00039708,30]
[393584285,1762824284233,-500.0,0.00039708,120]
[393584286,1762824284259,-500.0,0.00039708,120]
[393584287,1762824284290,-500.0,0.00039708,120]
[393584288,1762824284317,-500.0,0.00039708,120]
[393584289,1762824284342,-500.0,0.00039708,120]
[393584290,1762824284366,-500.0,0.00039708,120]
[393584291,1762824284390,-500.0,0.00039708,120]
[393584292,1762824284414,-500.0,0.00039708,120]
[393584293,1762824284440,-500.0,0.00039708,120]
[393584294,1762824284464,-500.0,0.00039708,120]
[393584295,1762824284488,-500.0,0.00039708,120]
[393584296,1762824284515,-500.0,0.00039708,120]
[393584297,1762824284540,-500.0,0.00039708,120]
[393584298,1762824284564,-500.0,0.00039708,120]
[393584299,1762824284588,-500.0,0.00039708,120]
[393584300,1762824284611,-500.0,0.00039708,120]
[393584301,1762824284635,-500.0,0.00039708,120]
[393584302,1762824284659,-500.0,0.00039708,120]
[393584303,1762824284682,-648.6,0.00039708,120]
[393584304,1762824284705,-500.0,0.00039708,120]
[393584305,1762824284728,-584.75020461,0.00039708,120]
[393584306,1762824284771,-733.87,0.00039708,120]
[393584307,1762824284796,-733.87,0.00039708,120]
[393584308,1762824284825,-733.87,0.00039708,120]
[393584309,1762824284851,-733.87,0.00039708,120]
[393584310,1762824284876,-733.87,0.00039708,120]
[393584311,1762824284902,-733.87,0.00039708,120]
[393584312,1762824284927,-733.87,0.00039708,120]
[393584313,1762824284952,-733.87,0.00039708,120]
[393584314,1762824284977,-733.87,0.00039708,120]
[393584315,1762824285002,-733.87,0.00039708,120]
[393584316,1762824285029,-733.87,0.00039708,120]
[393584317,1762824285054,-733.87,0.00039708,120]
[393584318,1762824285079,-733.87,0.00039708,120]
[393584319,1762824285106,-733.87,0.00039708,120]
[393584320,1762824285131,-733.87,0.00039708,120]
[393584321,1762824285163,-733.87,0.00039708,120]
[393584322,1762824285190,-733.87,0.00039708,120]
[393584323,1762824285216,-733.87,0.00039708,120]
[393584324,1762824285242,-733.87,0.00039708,120]
[393584325,1762824285270,-733.87,0.00039708,120]
[393584326,1762824285296,-733.87,0.00039708,120]
[393584327,1762824285321,-733.87,0.00039708,120]
[393584328,1762824285347,-733.87,0.00039708,120]
[393584329,1762824285376,-734.0871722,0.00039708,120]
[393584330,1762824285576,-500.0,0.00039708,120]
[393584331,1762824285600,-500.0,0.00039708,120]
[393584332,1762824285624,-500.0,0.00039708,120]
[393584333,1762824285648,-500.0,0.00039708,120]
[393584334,1762824285675,-500.0,0.00039708,120]
[393584335,1762824285700,-500.0,0.00039708,120]
[393584336,1762824285729,-500.0,0.00039708,120]
[393584337,1762824285754,-500.0,0.00039708,120]
[393584338,1762824285779,-500.0,0.00039708,120]
[393584339,1762824285804,-500.0,0.00039708,120]
[393584340,1762824285827,-270.37007535,0.00039708,120]
[393584341,1762824285852,-460.0,0.00039708,120]
[393584342,1762824285876,-500.0,0.00039708,120]
[393584343,1762824285901,-482.02,0.00039708,120]
[393584344,1762824285927,-500.0,0.00039708,120]
[393584345,1762824285955,-552.14615272,0.00039708,120]
[393584346,1762824285979,-187.1573773,0.00039708,120]
[393584347,1762824286006,-500.0,0.00039708,120]
[393584348,1762824286033,-355.0,0.00039708,120]
[393584349,1762824286057,-500.0,0.00039708,120]
[393584350,1762824286081,-500.0,0.00039708,120]
[393584351,1762824286105,-500.0,0.00039708,120]
[393584352,1762824286131,-500.0,0.00039708,120]
[393584353,1762824286154,-500.0,0.00039708,120]
[393584354,1762824286180,-500.0,0.00039708,120]
[393584355,1762824286203,-500.0,0.00039708,120]
[393584356,1762824286226,-500.0,0.00039708,120]
[393584357,1762824286249,-500.0,0.00039708,120]
[393584358,1762824286272,-500.0,0.00039708,120]
[393584359,1762824286316,-520.81210657,0.00039708,120]
[393584360,1762824286362,-500.0,0.00039708,120]
[393584361,1762824286403,-500.0,0.00039708,120]
[393584362,1762824286449,-500.0,0.00039708,120]
[393584363,1762824286493,-500.0,0.00039708,120]
[393584364,1762824286541,-500.0,0.00039708,120]
[393584365,1762824286607,-343.60728405,0.00039708,120]
[393584366,1762824286654,-530.32339582,0.00039708,120]
[393584367,1762824286707,-500.0,0.00039708,120]
[393584368,1762824286752,-500.0,0.00039708,120]
[393584369,1762824286794,-500.0,0.00039708,120]
[393584370,1762824286834,-500.0,0.00039708,120]
[393584371,1762824286873,-500.0,0.00039708,120]
[393584372,1762824286921,-500.0,0.00039708,120]
[393584373,1762824286968,-500.0,0.00039708,120]
[393584374,1762824287009,-500.0,0.00039708,120]
[393584375,1762824287052,-500.0,0.00039708,120]
[393584376,1762824287093,-500.0,0.00039708,120]
[393584377,1762824287136,-500.0,0.00039708,120]
[393584378,1762824287175,-500.0,0.00039708,120]
[393584379,1762824287217,-500.0,0.00039708,120]
[393584380,1762824287255,-500.0,0.00039708,120]
[393584381,1762824287296,-500.0,0.00039708,120]
[393584382,1762824287335,-500.0,0.00039708,120]
[393584383,1762824287374,-494.36837388,0.00039708,120]
[393584384,1762824287413,-500.0,0.00039708,120]
[393584385,1762824287453,-500.0,0.00039708,120]
[393584386,1762824287494,-500.0,0.00039708,120]
[393584387,1762824287535,-271.73787547,0.00039708,120]
[393584388,1762824287763,-500.0,0.00039708,120]
[393584389,1762824287789,-500.0,0.00039708,120]
[393584390,1762824287814,-616.97475743,0.00039708,120]
[393584391,1762824287841,-500.0,0.00039708,120]
[393584392,1762824287867,-500.0,0.00039708,120]
[393584393,1762824287891,-500.0,0.00039708,120]
[393584394,1762824287915,-486.60052335,0.00039708,120]
[393584395,1762824287939,-594.5,0.00039708,120]
[393584396,1762824287963,-594.5,0.00039708,120]
[393584397,1762824287988,-594.5,0.00039708,120]
[393584398,1762824288012,-594.5,0.00039708,120]
[393584399,1762824288038,-594.5,0.00039708,120]
[393584400,1762824288063,-594.5,0.00039708,120]
[393584401,1762824288087,-594.5,0.00039708,120]
[393584402,1762824288117,-594.5,0.00039708,120]
[393584403,1762824288142,-594.5,0.00039708,120]
[393584404,1762824288169,-587.31523383,0.00039708,120]
[393584405,1762824288194,-594.5,0.00039708,120]